bitfinex-derivatives/quotes_SOLF0:USTF0_20250903
["timestamp","ask_amount","ask_price","bid_price","bid_amount"]
[1756932414720,436.28,209.95,209.89,6.63]
[1756932415120,7.33,209.94,209.89,6.63]
[1756932415620,7.33,209.94,209.84,3.11947589]
[1756932415816,7.33,209.94,209.85,6.62]
[1756932421516,10.44947589,209.94,209.82,6.62]
[1756932421820,7.33,209.92,209.82,6.62]
[1756932422029,7.33,209.9,209.82,6.62]
[1756932423023,123.19,209.9,209.82,6.62]
[1756932423429,7.33,209.9,209.82,6.62]
[1756932425630,7.33,209.9,209.84,3.11947589]
[1756932425830,7.33,209.92,209.84,3.11947589]
[1756932426128,189.86,209.93,209.81,9.73947589]
[1756932426525,7.33,209.92,209.81,9.73947589]
[1756932426725,189.86,209.93,209.81,9.73947589]
[1756932426930,7.33,209.92,209.81,9.73947589]
[1756932428131,189.86,209.93,209.81,9.73947589]
[1756932428333,7.33,209.92,209.81,9.73947589]
[1756932428532,189.86,209.93,209.81,9.73947589]
[1756932428927,7.33,209.92,209.81,9.73947589]
[1756932429123,189.86,209.93,209.81,9.73947589]
[1756932429523,123.19,209.92,209.82,6.62]
[1756932429732,7.33,209.92,209.82,6.62]
[1756932429933,115.84,209.91,209.82,6.62]
[1756932430138,115.86,209.91,209.82,6.62]
[1756932430335,7.33,209.9,209.82,6.62]
[1756932436548,7.33,209.9,209.84,3.11947589]
[1756932437140,7.33,209.9,209.85,6.64]
[1756932437639,7.33,209.9,209.84,3.11947589]
[1756932437945,7.33,209.9,209.85,6.64]
[1756932438941,7.33,209.9,209.84,3.11947589]
[1756932439142,7.33,209.9,209.85,6.64]
[1756932439841,7.9,209.92,209.85,6.64]
[1756932440341,7.9,209.96,209.85,6.64]
[1756932440640,0.03357261,209.93,209.89,9.75947589]
[1756932440940,7.9,209.96,209.9,6.64]
[1756932441245,0.03220448,209.93,209.9,6.64]
[1756932441940,0.03220448,209.93,209.89,3.11947589]
[1756932442445,0.03220448,209.93,209.9,6.64]
[1756932442641,0.03220448,209.93,209.89,3.11947589]
[1756932442846,0.03220448,209.93,209.9,6.64]
[1756932443042,0.03220448,209.93,209.89,3.11947589]
[1756932443446,0.03220448,209.93,209.9,6.64]
[1756932443647,0.03220448,209.93,209.89,3.11947589]
[1756932443947,0.03220448,209.93,209.9,6.64]
[1756932444148,0.03220448,209.93,209.89,3.11947589]
[1756932444348,0.03220448,209.93,209.9,6.64]
[1756932445247,0.03220448,209.93,209.89,3.11947589]
[1756932445843,0.03220448,209.93,209.9,6.64]
[1756932446352,0.03220448,209.93,209.89,3.11947589]
[1756932446647,0.03220448,209.93,209.9,6.64]
[1756932446842,0.03220448,209.93,209.89,3.11947589]
[1756932447741,7.93220448,209.93,209.9,6.64]
[1756932448342,7.93220448,209.93,209.89,3.11947589]
[1756932448743,0.03220448,209.93,209.9,6.64]
[1756932448940,0.03220448,209.93,209.89,3.11947589]
[1756932449345,0.03220448,209.93,209.9,6.64]
[1756932449745,0.03220448,209.93,209.89,3.11947589]
[1756932449943,0.03220448,209.93,209.9,6.64]
[1756932450147,0.03220448,209.93,209.89,3.11947589]
[1756932450344,0.03220448,209.93,209.9,6.64]
[1756932450550,0.03220448,209.93,209.89,3.11947589]
[1756932450951,0.03220448,209.93,209.9,6.64]
[1756932451151,0.03220448,209.93,209.89,3.11947589]
[1756932451550,0.03220448,209.93,209.9,6.64]
[1756932451754,0.03220448,209.93,209.89,3.11947589]
[1756932452253,7.9,209.92,209.9,6.64]
[1756932453752,7.93220448,209.93,209.9,6.64]
[1756932454250,7.93220448,209.93,209.89,6.64]
[1756932454852,7.93220448,209.93,209.88,3.15078776]
[1756932455551,7.93220448,209.93,209.89,6.64]
[1756932455751,7.93220448,209.93,209.88,3.15078776]
[1756932456150,7.93220448,209.93,209.89,6.64]
[1756932456345,7.93220448,209.93,209.88,3.15078776]
[1756932456953,7.93220448,209.93,209.89,6.64]
[1756932457349,7.9,209.92,209.89,6.64]
[1756932462153,7.9,209.92,209.89,6.63]
[1756932462756,7.9,209.92,209.88,3.15078776]
[1756932464360,7.9,209.92,209.89,6.63]
[1756932465862,0.03220448,209.93,209.91,3.11947589]
[1756932466062,0.03220448,209.93,209.92,6.63]
[1756932471861,7.82,210.02,209.92,7.11]
[1756932472067,7.82,210.02,209.98,3.11947589]
[1756932472455,7.82,210.09,209.99,6.63]
[1756932472964,7.82,210.09,210.02,0.03041962]
[1756932475462,9.81380198,210.09,210.02,0.03041962]
[1756932477066,83.81380198,210.09,210.02,0.03041962]
[1756932479470,1.99380198,210.08,210.02,0.03041962]
[1756932479671,1.99380198,210.08,209.98,6.63]
[1756932479672,1.99380198,210.03,209.95,1.99380198]
[1756932479872,7.82,210.0,209.94,6.63]
[1756932480268,7.82,210.0,209.93,1.99380198]
[1756932480472,7.82,209.98,209.91,8.65380198]
[1756932483272,7.82,209.96,209.89,1.99380198]
[1756932484473,1.99380198,209.93,209.87,162.68545393]
[1756932484673,7.82,209.92,209.84,6.66]
[1756932484881,7.82,209.9,209.84,8.65380198]
[1756932487987,7.82,209.9,209.84,6.66]
[1756932488285,7.82,209.9,209.84,8.65380198]
[1756932494689,7.82,209.9,209.84,6.66]
[1756932496487,7.88,209.88,209.8,1.99380198]
[1756932496689,7.88,209.86,209.8,1.99380198]
[1756932498487,7.88,209.86,209.79,8.63380198]
[1756932498695,0.03457277,209.85,209.81,0.036468]
[1756932499293,7.88,209.84,209.81,0.036468]
[1756932499893,0.03457277,209.85,209.81,0.036468]
[1756932500789,1.99380198,209.83,209.81,0.036468]
[1756932500996,7.88,209.82,209.81,0.036468]
[1756932520706,9.87380198,209.82,209.81,0.036468]
[1756932521506,9.87380198,209.82,209.69,6.68]
[1756932521709,1.99380198,209.76,209.71,6.68]
[1756932521915,9.98380198,209.76,209.69,6.72]
[1756932522807,0.0359599,209.75,209.69,6.72]
[1756932530716,0.0359599,209.75,209.7,1.99380198]
[1756932531012,1.99380198,209.78,209.7,1.99380198]
[1756932531013,1.99380198,209.78,209.71,6.72]
[1756932531419,0.03305323,209.75,209.71,6.72]
[1756932532013,0.03305323,209.75,209.7,1.99380198]
[1756932532213,0.03305323,209.75,209.71,6.72]
[1756932533113,0.03305323,209.75,209.7,1.99380198]
[1756932533914,0.03305323,209.75,209.72,1.99380198]
[1756932534115,0.03305323,209.75,209.74,8.71380198]
[1756932534311,74.0,209.81,209.75,6.72]
[1756932534516,0.03137833,209.77,209.74,1.99380198]
[1756932534816,0.03137833,209.77,209.75,6.72]
[1756932535010,0.03137833,209.77,209.74,1.99380198]
[1756932535313,0.03137833,209.77,209.75,6.72]
[1756932535515,0.03137833,209.77,209.74,1.99380198]
[1756932535815,0.03137833,209.77,209.75,6.72]
[1756932536019,0.03137833,209.77,209.74,1.99380198]
[1756932536210,0.03137833,209.77,209.72,1.99380198]
[1756932536410,7.99,209.76,209.73,6.72]
[1756932536911,0.03147138,209.77,209.71,6.72]
[1756932537120,0.03147138,209.77,209.73,6.72]
[1756932537517,0.03147138,209.77,209.71,6.72]
[1756932543426,7.99,209.76,209.71,6.72]
[1756932543819,7.99,209.76,209.66,6.72]
[1756932544416,0.03024851,209.73,209.66,6.72]
[1756932547720,0.03024851,209.73,209.69,6.72]
[1756932548225,0.03024851,209.73,209.68,3.12346193]
[1756932548425,0.03024851,209.73,209.69,6.72]
[1756932548617,0.03024851,209.73,209.68,3.12346193]
[1756932548823,0.03024851,209.73,209.69,6.72]
[1756932549014,0.03024851,209.73,209.68,3.12346193]
[1756932549822,0.03024851,209.73,209.69,6.72]
[1756932550319,0.03024851,209.73,209.68,3.12346193]
[1756932550526,0.03024851,209.73,209.69,6.72]
[1756932551120,0.03024851,209.73,209.68,3.12346193]
[1756932551323,0.03024851,209.73,209.69,6.72]
[1756932551523,0.03024851,209.73,209.68,3.12346193]
[1756932551818,0.03024851,209.73,209.69,6.72]
[1756932552427,0.03024851,209.73,209.68,3.12346193]
[1756932552623,0.03024851,209.73,209.69,6.72]
[1756932552827,0.03024851,209.73,209.68,3.12346193]
[1756932553528,7.65024851,209.73,209.69,6.72]
[1756932554023,7.65024851,209.73,209.68,3.12346193]
[1756932554424,7.65024851,209.73,209.69,6.72]
[1756932554623,7.65024851,209.73,209.68,3.12346193]
[1756932554823,7.65024851,209.73,209.69,6.72]
[1756932555021,7.65024851,209.73,209.68,3.12346193]
[1756932555330,7.65024851,209.73,209.69,6.72]
[1756932555529,7.65024851,209.73,209.68,3.12346193]
[1756932555731,7.65024851,209.73,209.69,6.72]
[1756932555926,7.65024851,209.73,209.68,3.12346193]
[1756932556229,0.03024851,209.73,209.68,3.12346193]
[1756932556426,0.03024851,209.73,209.64,5.35862474]
[1756932556630,0.03024851,209.73,209.52,3.12346193]
[1756932556631,7.62,209.72,209.65,6.72]
[1756932561030,0.03024851,209.73,209.65,6.72]
[1756932561225,0.03024851,209.73,209.68,6.72]
[1756932561633,7.62,209.76,209.68,6.72]
[1756932561834,0.035456,209.73,209.67,3.12346193]
[1756932562939,7.62,209.72,209.68,6.72]
[1756932563539,7.62,209.72,209.67,3.12346193]
[1756932563736,7.62,209.72,209.68,6.72]
[1756932563941,7.62,209.72,209.67,3.12346193]
[1756932564141,7.62,209.72,209.68,6.72]
[1756932564540,7.62,209.72,209.67,3.12346193]
[1756932566241,7.62,209.72,209.68,6.72]
[1756932566433,7.62,209.72,209.67,3.12346193]
[1756932566833,7.62,209.72,209.68,6.72]
[1756932567038,7.62,209.72,209.67,3.12346193]
[1756932567343,7.62,209.72,209.68,6.72]
[1756932567543,7.62,209.72,209.67,3.12346193]
[1756932568341,7.62,209.72,209.68,6.72]
[1756932568843,7.62,209.72,209.67,3.12346193]
[1756932570737,7.62,209.72,209.68,6.72]
[1756932571043,7.62,209.72,209.67,3.12346193]
[1756932572144,0.035456,209.73,209.67,3.12346193]
[1756932572349,0.035456,209.73,209.68,6.72]
[1756932572943,0.035456,209.73,209.67,3.12346193]
[1756932573144,0.035456,209.73,209.68,6.72]
[1756932573347,0.035456,209.73,209.67,3.12346193]
[1756932573849,0.035456,209.73,209.68,6.72]
[1756932574051,0.035456,209.73,209.67,3.12346193]
[1756932574637,0.035456,209.73,209.68,6.72]
[1756932575047,0.035456,209.73,209.67,3.12346193]
[1756932575347,0.035456,209.73,209.68,6.72]
[1756932575745,0.035456,209.73,209.67,3.12346193]
[1756932576048,0.035456,209.73,209.68,6.72]
[1756932576249,0.035456,209.73,209.67,3.12346193]
[1756932576449,0.035456,209.73,209.68,6.72]
[1756932576649,0.035456,209.73,209.67,3.12346193]
[1756932576844,0.035456,209.73,209.68,6.72]
[1756932577051,0.035456,209.73,209.67,3.12346193]
[1756932577245,0.035456,209.73,209.68,6.72]
[1756932577445,0.035456,209.73,209.67,3.12346193]
[1756932578147,0.035456,209.73,209.68,6.72]
[1756932578451,0.035456,209.73,209.67,3.12346193]
[1756932579253,0.035456,209.73,209.68,6.72]
[1756932579848,0.035456,209.73,209.67,3.12346193]
[1756932580149,0.035456,209.73,209.68,6.72]
[1756932581050,0.035456,209.73,209.67,3.12346193]
[1756932581450,0.035456,209.73,209.68,6.72]
[1756932581652,0.035456,209.73,209.67,3.12346193]
[1756932582252,0.035456,209.73,209.68,6.72]
[1756932582652,0.035456,209.73,209.67,3.12346193]
[1756932582847,0.035456,209.73,209.68,6.72]
[1756932583253,0.035456,209.73,209.67,3.12346193]
[1756932583752,7.23,209.72,209.65,9.84346193]
[1756932583953,0.035456,209.73,209.65,9.84346193]
[1756932584650,7.23,209.72,209.65,9.84346193]
[1756932585255,7.23,209.72,209.66,6.72]
[1756932594358,7.23,209.72,209.63,6.72]
[1756932599464,0.035456,209.73,209.67,2.0003124]
[1756932599664,7.23,209.72,209.67,2.0003124]
[1756932600060,0.035456,209.73,209.67,2.0003124]
[1756932600264,7.23,209.72,209.67,2.0003124]
[1756932600661,0.035456,209.73,209.67,2.0003124]
[1756932601462,7.23,209.72,209.67,2.0003124]
[1756932601767,7.23,209.72,209.65,8.7203124]
[1756932601962,7.23,209.72,209.62,179.91590721]
[1756932602168,7.23,209.7,209.64,2.0003124]
[1756932602567,7.23,209.7,209.62,183.27759487]
[1756932602764,2.0003124,209.71,209.62,183.27759487]
[1756932603164,7.23,209.68,209.62,183.27759487]
[1756932604168,7.23,209.68,209.62,181.27728247]
[1756932604365,2.03109045,209.69,209.62,183.27759487]
[1756932605165,7.23,209.68,209.62,183.27759487]
[1756932610871,0.03077805,209.69,209.64,2.0003124]
[1756932611172,0.03077805,209.69,209.65,6.72]
[1756932611371,7.26077805,209.69,209.64,2.0003124]
[1756932612074,7.26077805,209.69,209.65,6.71]
[1756932612468,7.38,209.68,209.65,6.71]
[1756932617376,0.03077805,209.69,209.65,6.71]
[1756932617770,0.03077805,209.69,209.64,2.0003124]
[1756932617975,7.41077805,209.69,209.64,2.0003124]
[1756932618876,7.41077805,209.69,209.65,6.71]
[1756932619176,7.41077805,209.69,209.64,2.0003124]
[1756932619571,7.41077805,209.69,209.62,174.55728247]
[1756932619774,7.41077805,209.69,209.64,2.0003124]
[1756932619975,7.41077805,209.69,209.65,6.71]
[1756932620366,7.41077805,209.69,209.64,2.0003124]
[1756932620674,0.03077805,209.69,209.65,6.71]
[1756932620873,0.03077805,209.69,209.64,2.0003124]
[1756932621272,0.03077805,209.69,209.64,8.7103124]
[1756932621878,7.38,209.68,209.64,8.7103124]
[1756932622382,7.38,209.68,209.64,6.71]
[1756932622582,0.03077805,209.69,209.64,6.71]
[1756932622782,7.38,209.68,209.64,6.71]
[1756932622980,0.03077805,209.69,209.64,6.71]
[1756932623184,0.03077805,209.69,209.62,176.55759487]
[1756932623185,7.38,209.68,209.62,176.55759487]
[1756932623982,7.38,209.68,209.63,6.71]
[1756932624285,7.38,209.68,209.62,176.55759487]
[1756932624978,7.38,209.68,209.63,6.71]
[1756932625881,7.38,209.68,209.62,176.55759487]
[1756932626379,0.03077805,209.69,209.62,176.55759487]
[1756932626380,0.03077805,209.69,209.67,6.71]
[1756932626584,0.03077805,209.69,209.68,8.7103124]
[1756932639188,81.38,209.76,209.68,8.7103124]
[1756932639392,7.38,209.75,209.72,6.73]
[1756932642902,7.47,209.75,209.71,2.0003124]
[1756932643498,74.0,209.76,209.63,6.72]
[1756932643695,7.47,209.75,209.69,2.0003124]
[1756932649710,7.47,209.75,209.68,6.72]
[1756932650113,7.47,209.75,209.69,2.0003124]
[1756932650916,74.0,209.76,209.69,2.0003124]
[1756932651113,81.47,209.76,209.7,6.72]
[1756932654515,81.47,209.76,209.69,2.0003124]
[1756932659417,81.47,209.76,209.68,6.72]
[1756932661020,81.47,209.76,209.7,6.72]
[1756932661423,0.03076576,209.74,209.7,6.72]
[1756932661719,0.03076576,209.74,209.69,3.12495319]
[1756932661921,0.03076576,209.74,209.7,6.72]
[1756932662121,0.03076576,209.74,209.69,3.12495319]
[1756932663116,0.03076576,209.74,209.7,6.72]
[1756932663323,0.03076576,209.74,209.73,6.72]
[1756932664719,0.03076576,209.74,209.67,5.35862474]
[1756932664915,7.50076576,209.74,209.71,6.72]
[1756932665426,7.47,209.73,209.71,6.72]
[1756932666021,0.03076576,209.74,209.71,6.72]
[1756932666325,7.50076576,209.74,209.71,6.72]
[1756932668229,7.47,209.73,209.65,6.72]
[1756932668527,7.47,209.73,209.67,6.72]
[1756932672322,7.47,209.73,209.66,3.12495319]
[1756932672531,7.47,209.73,209.63,3.12495319]
[1756932672829,8.0,209.73,209.62,174.55728247]
[1756932673022,8.0,209.72,209.62,174.55728247]
[1756932673428,74.0,209.73,209.62,174.55728247]
[1756932673828,8.0,209.72,209.62,174.55728247]
[1756932674030,74.0,209.73,209.62,174.55728247]
[1756932674429,8.0,209.71,209.62,174.55728247]
[1756932676633,74.0,209.72,209.62,174.55728247]
[1756932676827,8.0,209.71,209.62,174.55728247]
[1756932677429,74.0,209.72,209.62,174.55728247]
[1756932678132,8.0,209.71,209.62,174.55728247]
[1756932678328,8.0,209.71,209.63,6.72]
[1756932680336,8.0,209.71,209.62,174.55728247]
[1756932680535,74.0,209.72,209.62,174.55728247]
[1756932681034,78.27213908,209.76,209.6,6.72]
[1756932681035,85.12495319,209.71,209.6,6.72]
[1756932682636,82.0,209.71,209.6,6.72]
[1756932682840,8.0,209.69,209.6,6.72]
[1756932684631,8.0,209.67,209.6,6.72]
[1756932705645,74.0,209.66,209.54,6.73]
[1756932705846,7.97,209.65,209.54,6.73]
[1756932706050,83.7,209.64,209.54,6.73]
[1756932706346,7.97,209.63,209.54,6.73]
[1756932716955,123.79,209.63,209.54,6.73]
[1756932717159,74.0,209.62,209.54,6.73]
[1756932717351,7.97,209.61,209.54,6.73]
[1756932718256,7.97,209.61,209.51,6.73]
[1756932721562,7.97,209.58,209.51,8.73337099]
[1756932724058,7.97,209.56,209.49,2.00337099]
[1756932724665,7.97,209.56,209.5,6.73]
[1756932724857,7.97,209.56,209.51,2.00337099]
[1756932725167,7.97,209.56,209.52,6.73]
[1756932725363,7.97,209.56,209.51,2.00337099]
[1756932725757,7.97,209.56,209.52,6.73]
[1756932725964,7.97,209.56,209.51,2.00337099]
[1756932726161,7.97,209.56,209.52,6.73]
[1756932726564,7.97,209.56,209.48,6.73]
[1756932726765,7.97,209.56,209.51,2.00337099]
[1756932727668,7.97,209.58,209.51,2.00337099]
[1756932729065,7.97,209.58,209.51,8.73337099]
[1756932730971,7.97,209.59,209.54,6.73]
[1756932731467,7.97,209.59,209.51,2.00337099]
[1756932733870,7.74,209.57,209.51,2.00337099]
[1756932745275,0.03061042,209.56,209.51,2.00337099]
[1756932745574,7.74,209.55,209.51,8.73337099]
[1756932745764,0.03061042,209.56,209.51,8.73337099]
[1756932745970,7.74,209.55,209.52,6.73]
[1756932746166,7.77061042,209.56,209.52,6.73]
[1756932746572,7.77061042,209.56,209.51,2.00337099]
[1756932746877,7.77061042,209.56,209.52,6.73]
[1756932747075,7.77061042,209.56,209.51,2.00337099]
[1756932747272,7.74,209.55,209.52,6.73]
[1756932748873,0.03061042,209.56,209.52,6.73]
[1756932749976,7.74,209.55,209.52,6.73]
[1756932753680,2.03398141,209.56,209.46,12.08862474]
[1756932753882,2.03398141,209.56,209.46,8.73337099]
[1756932753883,7.74,209.53,209.46,8.73337099]
[1756932754585,3.63230564,209.52,209.46,2.00337099]
[1756932754785,7.74,209.53,209.46,2.00337099]
[1756932754972,7.74,209.51,209.46,2.00337099]
[1756932755176,7.74,209.53,209.46,2.00337099]
[1756932755373,7.74,209.51,209.45,6.73]
[1756932758581,2.00337099,209.5,209.45,6.73]
[1756932758786,7.74,209.49,209.45,6.73]
[1756932759292,2.00337099,209.5,209.45,6.73]
[1756932759688,7.74,209.49,209.45,6.73]
[1756932760292,2.00337099,209.5,209.45,6.73]
[1756932760490,7.74,209.49,209.45,6.73]
[1756932760991,7.74,209.49,209.43,6.73]
[1756932765096,2.00337099,209.48,209.4,6.73]
[1756932765301,7.28,209.47,209.4,8.73337099]
[1756932768003,2.00337099,209.44,209.36,6.73]
[1756932768296,7.28,209.43,209.36,8.73337099]
[1756932769503,7.28,209.43,209.32,0.83124328]
[1756932769504,7.28,209.43,209.38,2.00337099]
[1756932769997,7.28,209.43,209.39,6.73]
[1756932770198,7.28,209.43,209.38,2.00337099]
[1756932770398,7.28,209.43,209.39,6.73]
[1756932772803,7.28,209.45,209.39,6.73]
[1756932775012,7.28,209.45,209.38,2.00337099]
[1756932775198,7.28,209.41,209.34,2.00337099]
[1756932780709,7.28,209.41,209.35,6.73]
[1756932781008,7.28,209.41,209.36,2.00337099]
[1756932781211,81.28,209.44,209.38,2.00337099]
[1756932781411,81.28,209.44,209.37,6.73]
[1756932782513,81.28,209.44,209.34,6.73]
[1756932786315,81.28,209.44,209.32,0.83124328]
[1756932786512,7.28,209.42,209.31,6.73]
[1756932791017,7.28,209.4,209.31,6.73]
[1756932794115,74.0,209.41,209.33,3.134147]
[1756932794314,7.69,209.43,209.34,6.75]
[1756932809136,7.69,209.41,209.34,6.75]
[1756932820841,3.60475957,209.4,209.34,6.75]
[1756932821041,7.69,209.42,209.34,6.75]
[1756932821244,7.69,209.4,209.34,6.75]
[1756932826347,7.6,209.43,209.34,6.75]
[1756932826548,7.6,209.43,209.36,3.134147]
[1756932826847,7.6,209.43,209.37,6.74]
[1756932841452,7.6,209.43,209.38,2.0059435]
[1756932842555,74.0,209.44,209.38,2.0059435]
[1756932842858,7.6,209.43,209.38,2.0059435]
[1756932843053,74.0,209.44,209.38,2.0059435]
[1756932843951,7.6,209.43,209.38,2.0059435]
[1756932844156,74.0,209.44,209.38,2.0059435]
[1756932844356,7.6,209.43,209.38,2.0059435]
[1756932844557,74.0,209.44,209.38,2.0059435]
[1756932845158,7.6,209.43,209.38,2.0059435]
[1756932845460,74.0,209.44,209.38,2.0059435]
[1756932845660,7.6,209.43,209.38,2.0059435]
[1756932845860,74.0,209.44,209.38,2.0059435]
[1756932847061,7.6,209.43,209.38,2.0059435]
[1756932847962,74.0,209.44,209.38,2.0059435]
[1756932848358,2.0059435,209.46,209.38,2.0059435]
[1756932848359,7.6,209.43,209.38,2.0059435]
[1756932848562,7.6,209.45,209.38,2.0059435]
[1756932851357,2.0059435,209.44,209.33,6.74]
[1756932851660,2.0059435,209.42,209.35,2.0059435]
[1756932851863,7.46,209.41,209.35,2.0059435]
[1756932855267,9.4659435,209.41,209.32,2.0059435]
[1756932855669,9.4659435,209.41,209.32,8.7559435]
[1756932855963,7.46,209.41,209.36,2.0059435]
[1756932856164,7.46,209.42,209.36,8.7559435]
[1756932856564,7.46,209.42,209.39,6.75]
[1756932856865,7.46,209.42,209.38,2.0059435]
[1756932857068,7.46,209.42,209.39,6.75]
[1756932858170,7.46,209.46,209.38,2.0059435]
[1756932858370,7.46,209.44,209.36,8.7559435]
[1756932872685,7.46,209.44,209.36,6.75]
[1756932876892,7.46,209.44,209.37,6.75]
[1756932880993,7.46,209.44,209.38,2.0059435]
[1756932881191,14.77808258,209.47,209.39,6.75]
[1756932881390,14.77808258,209.47,209.41,6.75]
[1756932881391,7.46,209.47,209.41,6.75]
[1756932881793,9.4659435,209.47,209.41,6.75]
[1756932882488,9.4659435,209.47,209.38,8.7459435]
[1756932882886,7.69,209.44,209.38,6.74]
[1756932883592,2.0059435,209.43,209.38,6.74]
[1756932883792,7.69,209.42,209.38,6.74]
[1756932884097,2.0059435,209.43,209.38,6.74]
[1756932884392,5.31213908,209.47,209.38,6.74]
[1756932884590,2.0059435,209.43,209.38,6.74]
[1756932884989,7.69,209.42,209.38,6.74]
[1756932885193,2.0059435,209.43,209.38,6.74]
[1756932885794,7.69,209.42,209.38,6.74]
[1756932886194,2.0059435,209.43,209.38,6.74]
[1756932886896,7.69,209.42,209.38,6.74]
[1756932887091,2.0059435,209.43,209.38,6.74]
[1756932887292,7.69,209.42,209.38,6.74]
[1756932887496,2.0059435,209.43,209.38,6.74]
[1756932888099,7.69,209.42,209.36,6.74]
[1756932904108,5.31213908,209.46,209.33,9.87475628]
[1756932904419,7.69,209.44,209.33,9.87475628]
[1756932904618,7.69,209.44,209.34,6.74]
[1756932911014,7.69,209.44,209.36,3.13475628]
[1756932911221,7.69,209.44,209.37,6.74]
[1756932932949,7.96820862,209.51,209.4,6.74]
[1756932932950,7.68,209.47,209.4,6.74]
[1756932933144,7.68,209.47,209.42,3.13475628]
[1756932933349,5.31213908,209.53,209.43,6.74]
[1756932933646,7.68,209.52,209.43,6.74]
[1756932936952,7.68,209.52,209.46,6.74]
[1756932942461,7.44,209.58,209.49,6.74]
[1756932945762,7.44,209.58,209.51,3.13475628]
[1756932946154,7.44,209.58,209.51,9.87475628]
[1756932950166,74.0,209.59,209.51,9.87475628]
[1756932951569,7.44,209.58,209.52,6.74]
[1756932961574,74.0,209.59,209.53,2.00325739]
[1756932962165,7.44,209.58,209.53,2.00325739]
[1756932962473,7.44,209.58,209.51,2.00325739]
[1756932964273,7.44,209.58,209.53,2.00325739]
[1756932964668,7.44,209.58,209.55,2.00325739]
[1756932964877,7.44,209.58,209.55,8.74325739]
[1756932965979,33.2,209.61,209.55,2.00325739]
[1756932966177,40.64,209.61,209.55,8.74325739]
[1756932967581,40.64,209.61,209.55,6.74]
[1756932967780,40.64,209.61,209.55,2.00325739]
[1756932977987,0.03332489,209.6,209.55,2.00325739]
[1756932978788,7.59,209.59,209.55,2.00325739]
[1756932979088,0.03332489,209.6,209.55,2.03520348]
[1756932979487,7.59,209.59,209.55,2.03520348]
[1756932979687,0.03332489,209.6,209.55,2.03520348]
[1756932979883,7.59,209.59,209.55,2.03520348]
[1756932980293,0.03332489,209.6,209.55,2.03520348]
[1756932980893,7.59,209.59,209.55,2.03520348]
[1756932981288,0.03332489,209.6,209.55,2.03520348]
[1756932981687,7.59,209.59,209.55,2.03520348]
[1756932981889,0.03332489,209.6,209.55,2.03520348]
[1756932982192,7.59,209.59,209.55,2.03520348]
[1756932982385,0.03332489,209.6,209.55,2.03520348]
[1756932982593,7.59,209.59,209.55,2.03520348]
[1756932983090,0.03332489,209.6,209.55,2.03520348]
[1756932983284,7.59,209.59,209.55,8.77520348]
[1756932983484,0.03332489,209.6,209.55,8.77520348]
[1756932983890,7.59,209.59,209.55,8.77520348]
[1756932984287,0.03332489,209.6,209.55,8.77520348]
[1756932984689,7.59,209.59,209.55,6.77194609]
[1756932984889,0.03332489,209.6,209.55,6.77194609]
[1756932985584,7.59,209.59,209.55,6.77194609]
[1756932985787,0.03332489,209.6,209.55,6.77194609]
[1756932986390,0.03332489,209.6,209.56,6.74]
[1756932986391,7.59,209.59,209.56,6.74]
[1756932986593,0.03332489,209.6,209.56,6.74]
[1756932986794,7.59,209.59,209.56,6.74]
[1756932986990,0.03332489,209.6,209.56,6.74]
[1756932987296,7.59,209.59,209.56,6.74]